fUST/lending_fUST_20250901
["ID","MTS","AMOUNT","RATE_DAILY","PERIOD"]
[382674747,1756705850327,-480.0,0.00014503,2]
[382674748,1756705850336,-270.98948673,0.00014503,2]
[382674749,1756705850345,-480.0,0.00014503,2]
[382674750,1756705850354,-480.0,0.00014503,2]
[382674751,1756705850363,-480.0,0.00014503,2]
[382674752,1756705850371,-480.0,0.00014503,2]
[382674753,1756705850381,-480.0,0.00014503,2]
[382674754,1756705850390,-480.0,0.00014503,2]
[382674755,1756705850400,-157.4141734,0.00014503,2]
[382674756,1756705850409,-480.0,0.00014503,2]
[382674757,1756705850418,-1190.23,0.00014503,2]
[382674758,1756705850428,-481.91405631,0.00014503,2]
[382674759,1756705850437,-480.0,0.00014503,2]
[382674760,1756705850446,-480.0,0.00014503,2]
[382674761,1756705850455,-1891.18,0.00014503,2]
[382674762,1756705850464,-755.77,0.00014503,2]
[382674763,1756705850474,-481.54031166,0.00014503,2]
[382674764,1756705850483,-1212.9,0.00014503,2]
[382674765,1756705850492,-560.69,0.00014503,2]
[382674766,1756705850502,-599.63,0.00014503,2]
[382674767,1756705850511,-480.0,0.00014503,2]
[382674768,1756705850519,-480.0,0.00014503,2]
[382674769,1756705850529,-480.0,0.00014503,2]
[382674770,1756705850538,-607.54,0.00014503,2]
[382674771,1756705850548,-480.0,0.00014503,2]
[382674772,1756705850557,-685.7,0.00014503,2]
[382674773,1756705850566,-1000.0,0.00014503,2]
[382674774,1756705850577,-546.46,0.00014503,2]
[382674775,1756705850586,-1337.47,0.00014503,2]
[382674776,1756705850595,-500.0,0.00014504,2]
[382674777,1756705850604,-700.77,0.00014504,2]
[382674778,1756705850614,-480.0,0.00014504,2]
[382674779,1756705850624,-850.15,0.00014504,2]
[382674780,1756705850633,-1149.69,0.00014504,2]
[382674781,1756705850643,-1225.66,0.00014504,2]
[382674782,1756705850652,-480.0,0.00014504,2]
[382674783,1756705850662,-480.0,0.00014504,2]
[382674785,1756705850671,-151.0,0.00014504,2]
[382674786,1756705850681,-294.511964,0.00014504,2]
[382674788,1756705850690,-480.0,0.00014504,2]
[382674789,1756705850699,-646.96,0.00014504,2]
[382674790,1756705850709,-633.6,0.00014504,2]
[382674791,1756705850718,-480.0,0.00014504,2]
[382674792,1756705850727,-480.0,0.00014504,2]
[382674793,1756705850737,-480.0,0.00014504,2]
[382674794,1756705850746,-480.0,0.00014504,2]
[382674795,1756705850755,-912.11,0.00014504,2]
[382674796,1756705850764,-480.0,0.00014504,2]
[382674797,1756705850774,-480.0,0.00014504,2]
[382674798,1756705850783,-480.0,0.00014504,2]
[382674799,1756705850793,-480.0,0.00014504,2]
[382674800,1756705850802,-946.43,0.00014504,2]
[382674801,1756705850812,-480.0,0.00014504,2]
[382674802,1756705850822,-480.0,0.00014504,2]
[382674803,1756705850831,-480.0,0.00014504,2]
[382674805,1756705850840,-888.15,0.00014504,2]
[382674806,1756705850850,-1589.86,0.00014504,2]
[382674808,1756705850859,-480.0,0.00014504,2]
[382674809,1756705850869,-480.0,0.00014504,2]
[382674810,1756705850879,-346.94896235,0.00014504,2]
[382674811,1756705850888,-480.0,0.00014504,2]
[382674813,1756705850897,-480.0,0.00014504,2]
[382674814,1756705850907,-480.0,0.00014504,2]
[382674815,1756705850916,-641.85,0.00014504,2]
[382674816,1756705850926,-480.0,0.00014504,2]
[382674817,1756705850935,-480.0,0.00014504,2]
[382674818,1756705850945,-480.0,0.00014504,2]
[382674819,1756705850954,-480.0,0.00014504,2]
[382674820,1756705850964,-592.0,0.00014504,2]
[382674821,1756705850973,-480.0,0.00014504,2]
[382674822,1756705850983,-480.0,0.00014504,2]
[382674823,1756705850993,-480.0,0.00014504,2]
[382674824,1756705851003,-480.0,0.00014504,2]
[382674825,1756705851012,-480.0,0.00014505,2]
[382674826,1756705851022,-596.92,0.00014505,2]
[382674827,1756705851032,-480.0,0.00014505,2]
[382674828,1756705851042,-480.0,0.00014505,2]
[382674829,1756705851052,-480.0,0.00014505,2]
[382674830,1756705851062,-480.0,0.00014505,2]
[382674831,1756705851072,-480.0,0.00014505,2]
[382674832,1756705851082,-480.0,0.00014505,2]
[382674833,1756705851091,-480.0,0.00014505,2]
[382674834,1756705851101,-482.36520786,0.00014505,2]
[382674835,1756705851111,-480.0,0.00014505,2]
[382674836,1756705851121,-480.0,0.00014505,2]
[382674837,1756705851136,-480.0,0.00014505,2]
[382674838,1756705851146,-480.0,0.00014505,2]
[382674839,1756705851156,-480.0,0.00014505,2]
[382674840,1756705851167,-480.0,0.00014505,2]
[382674841,1756705851177,-480.0,0.00014505,2]
[382674842,1756705851187,-861.77,0.00014505,2]
[382674843,1756705851197,-480.0,0.00014505,2]
[382674844,1756705851207,-988.7,0.00014505,2]
[382674845,1756705851218,-480.0,0.00014505,2]
[382674846,1756705851228,-590.68739444,0.00014505,2]
[382674847,1756705851239,-480.0,0.00014505,2]
[382674848,1756705851249,-509.77,0.00014505,2]
[382674849,1756705851259,-480.0,0.00014505,2]
[382674850,1756705851269,-969.64,0.00014505,2]
[382674851,1756705851279,-480.0,0.00014505,2]
[382674852,1756705851289,-480.0,0.00014505,2]
[382674853,1756705851299,-480.0,0.00014505,2]
[382674854,1756705851308,-480.0,0.00014505,2]
[382674855,1756705851318,-480.0,0.00014505,2]
[382674856,1756705851329,-482.36,0.00014505,2]
[382674857,1756705851339,-480.0,0.00014505,2]
[382674858,1756705851349,-591.96021485,0.00014505,2]
[382674859,1756705851358,-480.0,0.00014505,2]
[382674860,1756705851368,-480.0,0.00014505,2]
[382674861,1756705851378,-480.0,0.00014505,2]
[382674862,1756705851388,-482.26617379,0.00014505,2]
[382674863,1756705851398,-490.04034868,0.00014505,2]
[382674864,1756705851408,-480.0,0.00014505,2]
[382674865,1756705851417,-480.0,0.00014505,2]
[382674866,1756705851427,-480.0,0.00014505,2]
[382674867,1756705851436,-482.36166513,0.00014505,2]
[382674868,1756705851446,-480.0,0.00014505,2]
[382674869,1756705851455,-660.19,0.00014505,2]
[382674870,1756705851465,-764.66,0.00014505,2]
[382674871,1756705851475,-402.25864143,0.00014505,2]
[382674872,1756705851485,-783.34,0.00014505,2]
[382674873,1756705851494,-480.0,0.00014505,2]
[382674874,1756705851504,-480.0,0.00014505,2]
[382674875,1756705851513,-500.77,0.00014505,2]
[382674876,1756705851529,-480.0,0.00014505,2]
[382674877,1756705851539,-480.0,0.00014505,2]
[382674878,1756705851548,-480.0,0.00014505,2]
[382674879,1756705851558,-480.0,0.00014505,2]
[382674880,1756705851567,-480.0,0.00014505,2]
[382674881,1756705851578,-480.0,0.00014505,2]
[382674882,1756705851587,-822.59,0.00014505,2]
[382674883,1756705851598,-480.0,0.00014505,2]
[382674884,1756705851608,-480.0,0.00014505,2]
[382674885,1756705851618,-570.92,0.00014505,2]
[382674886,1756705851627,-1104.84,0.00014505,2]
[382674887,1756705851637,-480.0,0.00014505,2]
[382674888,1756705851647,-480.0,0.00014505,2]
[382674889,1756705851657,-480.0,0.00014505,2]
[382674890,1756705851667,-480.0,0.00014505,2]
[382674891,1756705851676,-480.0,0.00014505,2]
[382674892,1756705851686,-480.0,0.00014505,2]
[382674893,1756705851696,-480.0,0.00014505,2]
[382674894,1756705851706,-480.0,0.00014505,2]
[382674895,1756705851715,-480.0,0.00014505,2]
[382674896,1756705851725,-481.8628852,0.00014505,2]
[382674897,1756705851734,-480.0,0.00014505,2]
[382674898,1756705851744,-480.0,0.00014505,2]
[382674899,1756705851754,-480.0,0.00014505,2]
[382674900,1756705851763,-480.0,0.00014505,2]
[382674901,1756705851774,-480.0,0.00014505,2]
[382674902,1756705851788,-151.0,0.00014505,2]
[382674903,1756705851798,-480.0,0.00014505,2]
[382674904,1756705851808,-533.97,0.00014505,2]
[382674905,1756705851818,-480.0,0.00014505,2]
[382674906,1756705851829,-480.0,0.00014505,2]
[382674907,1756705851839,-669.49,0.00014505,2]
[382674908,1756705851848,-155.218102,0.00014505,2]
[382674909,1756705851858,-151.0,0.00014505,2]
[382674910,1756705851867,-775.85,0.00014505,2]
[382674911,1756705851877,-480.0,0.00014505,2]
[382674912,1756705851887,-480.0,0.00014505,2]
[382674913,1756705851897,-151.0,0.00014505,2]
[382674914,1756705851907,-151.0,0.00014505,2]
[382674915,1756705851916,-151.0,0.00014505,2]
[382674916,1756705851926,-480.0,0.00014505,2]
[382674917,1756705851936,-317.93001458,0.00014505,2]
[382674918,1756705851946,-480.0,0.00014505,2]
[382674919,1756705851956,-546.95,0.00014505,2]
[382674920,1756705851965,-480.0,0.00014505,2]
[382674921,1756705851975,-980.42,0.00014505,2]
[382674922,1756705851985,-480.0,0.00014505,2]
[382674923,1756705851995,-480.0,0.00014505,2]
[382674924,1756705852005,-871.82,0.00014505,2]
[382674925,1756705852015,-512.89,0.00014505,2]
[382674926,1756705852024,-480.0,0.00014505,2]
[382674927,1756705852034,-480.0,0.00014505,2]
[382674928,1756705852044,-480.0,0.00014505,2]
[382674929,1756705852054,-480.0,0.00014505,2]
[382674930,1756705852065,-480.0,0.00014505,2]
[382674931,1756705852076,-480.0,0.00014505,2]
[382674932,1756705852090,-480.0,0.00014505,2]
[382674933,1756705852100,-480.0,0.00014505,2]
[382674935,1756705852110,-480.0,0.00014505,2]
[382674937,1756705852120,-536.17,0.00014505,2]
[382674939,1756705852132,-1295.49,0.00014505,2]
[382674941,1756705852142,-480.0,0.00014505,2]
[382674943,1756705852153,-480.0,0.00014505,2]
[382674945,1756705852162,-761.22,0.00014505,2]
[382674946,1756705852174,-480.0,0.00014505,2]
[382674947,1756705852184,-480.0,0.00014505,2]
[382674948,1756705852194,-480.0,0.00014505,2]
[382674949,1756705852205,-510.39722966,0.00014508,2]
[382674950,1756705852215,-480.0,0.00014508,2]
[382674951,1756705852225,-307.9810294,0.00014508,2]
[382674952,1756705852235,-480.0,0.00014508,2]
[382674953,1756705852244,-480.0,0.00014508,2]
[382674954,1756705852254,-657.94,0.00014508,2]
[382674955,1756705852264,-480.0,0.00014508,2]
[382674956,1756705852274,-480.0,0.00014508,2]
[382674957,1756705852284,-550.62,0.00014508,2]
[382674958,1756705852296,-480.0,0.00014509,2]
[382674959,1756705852305,-542.83,0.00014509,2]
[382674960,1756705852315,-500.0,0.00014511,2]
[382674961,1756705852325,-500.0,0.00014511,2]
[382674962,1756705852335,-500.0,0.00014511,2]
[382674963,1756705852344,-151.0,0.00014511,2]
[382674964,1756705852354,-155.38,0.00014517,2]
[382674965,1756705852364,-155.38,0.00014531,2]
[382674966,1756705852374,-155.35,0.00014535,2]
[382674967,1756705852384,-500.0,0.00014573,2]
[382674968,1756705852394,-511.4191155,0.00014573,2]
[382674969,1756705852404,-500.0,0.00014573,2]
[382674970,1756705852413,-300.43414694,0.00014573,2]
[382674971,1756705852423,-500.0,0.00014573,2]
[382674972,1756705852433,-390.26996667,0.00014573,2]
[382674973,1756705852443,-501.2860732,0.00014573,2]
[382674974,1756705852453,-500.0,0.00014573,2]
[382674975,1756705852463,-500.0,0.00014573,2]
[382674976,1756705852473,-500.0,0.00014573,2]
[382674977,1756705852483,-500.0,0.00014573,2]
[382674978,1756705852492,-500.0,0.00014573,2]
[382674979,1756705852502,-500.0,0.00014573,2]
[382674980,1756705852511,-500.0,0.00014573,2]
[382674981,1756705852522,-500.0,0.00014573,2]
[382674982,1756705852532,-500.0,0.00014573,2]
[382674983,1756705852542,-500.0,0.00014573,2]
[382674984,1756705852552,-213.6765226,0.00014573,2]
[382674985,1756705852562,-500.0,0.00014573,2]
[382674986,1756705852573,-500.0,0.00014573,2]
[382674987,1756705852583,-162.32848625,0.00014573,2]
[382674988,1756705852593,-500.0,0.00014573,2]
[382674989,1756705852602,-500.0,0.00014573,2]
[382674990,1756705852612,-500.0,0.00014573,2]
[382674991,1756705852622,-500.0,0.00014573,2]
[382674992,1756705852632,-500.0,0.00014573,2]
[382674993,1756705852641,-500.40338952,0.00014573,2]
[382674994,1756705852651,-259.82945128,0.00014573,2]
[382674995,1756705852660,-500.0,0.00014573,2]
[382674996,1756705852670,-500.0,0.00014573,2]
[382674997,1756705852837,-500.0,0.00014573,2]
[382674998,1756705852848,-500.0,0.00014573,2]
[382674999,1756705852858,-500.0,0.00014573,2]
[382675000,1756705852868,-500.74315715,0.00014573,2]
[382675001,1756705852878,-500.47404281,0.00014573,2]
[382675002,1756705852887,-500.0,0.00014573,2]
[382675003,1756705852896,-500.0,0.00014573,2]
[382675004,1756705852906,-500.0,0.00014573,2]
[382675005,1756705852916,-500.0,0.00014573,2]
[382675006,1756705852925,-500.0,0.00014573,2]
[382675007,1756705852934,-500.0,0.00014573,2]
[382675008,1756705852944,-502.36207162,0.00014573,2]
[382675009,1756705852954,-500.0,0.00014573,2]
[382675010,1756705852963,-500.0,0.00014573,2]
[382675011,1756705852974,-340.38992879,0.00014573,2]
[382675012,1756705852984,-500.0,0.00014573,2]
[382675013,1756705852994,-500.0,0.00014573,2]
[382675014,1756705853004,-6074.19857096,0.00014577,2]
[382675015,1756705853014,-464.82710566,0.00014578,2]
[382675016,1756705853024,-480.0,0.00014578,2]
[382675017,1756705853034,-959.02,0.00014578,2]
[382675018,1756705853044,-480.0,0.00014578,2]
[382675019,1756705853055,-480.0,0.00014578,2]
[382675020,1756705853066,-480.0,0.00014578,2]
[382675021,1756705853077,-1007.69,0.00014578,2]
[382675022,1756705853087,-480.0,0.00014578,2]
[382675023,1756705853097,-480.0,0.00014578,2]
[382675024,1756705853107,-480.0,0.00014578,2]
[382675025,1756705853116,-480.0,0.00014578,2]
[382675026,1756705853126,-480.0,0.00014578,2]
[382675027,1756705853138,-480.0,0.00014578,2]
[382675028,1756705853150,-480.0,0.00014578,2]
[382675029,1756705853160,-724.16,0.00014578,2]
[382675030,1756705853170,-588.81,0.00014578,2]
[382675031,1756705853181,-480.0,0.00014578,2]
[382675032,1756705853190,-480.0,0.00014578,2]
[382675033,1756705853202,-467.95252676,0.00014578,2]
[382675034,1756705853211,-189.25323783,0.00014578,2]
[382675035,1756705853222,-1201.71,0.00014578,2]
[382675036,1756705853232,-511.63,0.00014578,2]
[382675037,1756705853242,-480.0,0.00014578,2]
[382675038,1756705853252,-482.04,0.00014578,2]
[382675039,1756705853262,-2316.86,0.00014578,2]
[382675041,1756705853271,-480.0,0.00014578,2]
[382675043,1756705853281,-480.0,0.00014578,2]
[382675045,1756705853291,-480.0,0.00014578,2]
[382675047,1756705853300,-536.9,0.00014578,2]
[382675048,1756705853310,-480.0,0.00014578,2]
[382675049,1756705853319,-500.12,0.00014578,2]
[382675050,1756705853329,-352.57267807,0.00014578,2]
[382675051,1756705853339,-550.96,0.00014578,2]
[382675052,1756705853348,-1209.8,0.00014578,2]
[382675053,1756705853360,-480.0,0.00014578,2]
[382675054,1756705853370,-480.0,0.00014578,2]
[382675055,1756705853379,-601.47,0.00014578,2]
[382675056,1756705853389,-480.0,0.00014578,2]
[382675057,1756705853399,-480.0,0.00014578,2]
[382675058,1756705853408,-480.0,0.00014578,2]
[382675059,1756705853418,-2093.79,0.00014578,2]
[382675060,1756705853427,-480.0,0.00014578,2]
[382675061,1756705853438,-688.09,0.00014578,2]
[382675062,1756705853447,-893.1,0.00014578,2]
[382675063,1756705853457,-480.0,0.00014578,2]
[382675064,1756705853467,-1222.02,0.00014578,2]
[382675065,1756705853477,-1814.94,0.00014578,2]
[382675066,1756705853487,-594.12,0.00014578,2]
[382675067,1756705853496,-480.0,0.00014578,2]
[382675068,1756705853506,-480.0,0.00014578,2]
[382675069,1756705853515,-482.49579189,0.00014578,2]
[382675070,1756705853525,-480.0,0.00014578,2]
[382675071,1756705853535,-480.0,0.00014578,2]
[382675072,1756705853544,-480.0,0.00014578,2]
[382675073,1756705853554,-480.0,0.00014578,2]
[382675074,1756705853563,-500.0,0.00014578,2]
[382675075,1756705853573,-151.0,0.000146,2]
[382675076,1756705853583,-151.0,0.000146,2]
[382675077,1756705853592,-391.557,0.00014614,2]
[382675078,1756705853602,-649.3010553,0.00014614,2]
[382675079,1756705853611,-278.35488646,0.00014631,2]
[382675080,1756705853621,-277.2116924,0.00014655,2]
[382675081,1756705853630,-500.0,0.00014655,2]
[382675082,1756705853639,-151.0,0.00014655,2]
[382675083,1756705853649,-295.16553519,0.00014655,2]
[382675084,1756705853659,-151.0,0.00014655,2]
[382675085,1756705853668,-151.0,0.00014655,2]
[382675086,1756705853677,-151.0,0.00014655,2]
[382675087,1756705853687,-500.0,0.00014655,2]
[382675088,1756705853696,-1494.0,0.00014655,2]
[382675089,1756705853705,-775.72,0.00014677,2]
[382675090,1756705853715,-480.0,0.00014677,2]
[382675091,1756705853724,-661.01,0.00014677,2]
[382675092,1756705853734,-1408.26,0.00014677,2]
[382675093,1756705853743,-5249.77,0.00014677,2]
[382675094,1756705853753,-480.0,0.00014677,2]
[382675095,1756705853763,-830.29,0.00014677,2]
[382675096,1756705853772,-1204.97,0.00014677,2]
[382675097,1756705853781,-3257.21,0.00014677,2]
[382675098,1756705853791,-4980.36,0.00014677,2]
[382675099,1756705853801,-1963.55,0.00014677,2]
[382675100,1756705853810,-622.47,0.00014677,2]
[382675101,1756705853820,-1425.86,0.00014677,2]
[382675102,1756705853829,-480.0,0.00014677,2]
[382675103,1756705853839,-480.0,0.00014678,2]
[382675104,1756705853848,-480.0,0.00014678,2]
[382675105,1756705853859,-480.0,0.00014678,2]
[382675106,1756705853868,-480.0,0.00014678,2]
[382675107,1756705853879,-480.0,0.00014678,2]
[382675108,1756705853888,-720.62,0.00014678,2]
[382675109,1756705853898,-480.0,0.00014678,2]
[382675110,1756705853907,-1045.3,0.00014678,2]
[382675111,1756705853917,-700.16,0.00014678,2]
[382675112,1756705853927,-480.0,0.00014678,2]
[382675113,1756705853936,-480.0,0.00014678,2]
[382675114,1756705853946,-480.0,0.00014678,2]
[382675115,1756705853955,-480.0,0.00014678,2]
[382675116,1756705853965,-544.45,0.00014678,2]
[382675117,1756705853974,-724.58,0.00014678,2]
[382675118,1756705853984,-480.0,0.00014678,2]
[382675119,1756705853993,-480.0,0.00014678,2]
[382675120,1756705854003,-892.82,0.00014678,2]
[382675121,1756705854012,-480.0,0.00014678,2]
[382675122,1756705854021,-821.3,0.00014678,2]
[382675123,1756705854031,-809.36,0.00014678,2]
[382675124,1756705854041,-1025.49,0.00014678,2]
[382675125,1756705854050,-568.86,0.00014678,2]
[382675126,1756705854059,-480.0,0.00014678,2]
[382675127,1756705854069,-480.0,0.00014678,2]
[382675128,1756705854080,-604.84,0.00014678,2]
[382675129,1756705854089,-820.88,0.00014678,2]
[382675130,1756705854099,-480.0,0.00014678,2]
[382675131,1756705854108,-480.0,0.00014678,2]
[382675132,1756705854118,-668.21,0.00014678,2]
[382675133,1756705854134,-480.0,0.00014678,2]
[382675134,1756705854144,-480.0,0.00014678,2]
[382675135,1756705854154,-480.0,0.00014678,2]
[382675136,1756705854163,-678.37,0.00014678,2]
[382675137,1756705854174,-705.04,0.00014678,2]
[382675138,1756705854184,-480.0,0.00014678,2]
[382675139,1756705854194,-780.52,0.00014678,2]
[382675140,1756705854205,-480.0,0.00014678,2]
[382675141,1756705854215,-500.99053729,0.00014678,2]
[382675142,1756705854225,-480.0,0.00014678,2]
[382675143,1756705854234,-480.0,0.00014678,2]
[382675144,1756705854244,-480.0,0.00014678,2]
[382675145,1756705854254,-827.91,0.00014678,2]
[382675146,1756705854263,-480.0,0.00014678,2]
[382675147,1756705854273,-480.0,0.00014678,2]
[382675148,1756705854282,-480.0,0.00014678,2]
[382675149,1756705854292,-918.17,0.00014678,2]
[382675150,1756705854302,-1131.63,0.00014678,2]
[382675151,1756705854311,-480.0,0.00014678,2]
[382675152,1756705854320,-488.26,0.00014678,2]
[382675153,1756705854330,-480.0,0.00014678,2]
[382675154,1756705854340,-480.0,0.00014678,2]
[382675155,1756705854350,-480.0,0.00014678,2]
[382675156,1756705854359,-850.44,0.00014678,2]
[382675157,1756705854368,-3629.01,0.00014678,2]
[382675158,1756705854378,-151.0,0.000147,2]
[382675159,1756705854387,-151.0,0.000147,2]
[382675160,1756705854396,-1739.83639088,0.00014707,2]
[382675161,1756705854406,-393.0,0.00014756,2]
[382675162,1756705854415,-9484.17911421,0.00014767,2]
[382675163,1756705854425,-500.0,0.00014773,2]
[382675164,1756705854434,-480.0,0.00014776,2]
[382675165,1756705854443,-480.0,0.00014776,2]
[382675166,1756705854453,-528.2,0.00014776,2]
[382675167,1756705854462,-480.0,0.00014776,2]
[382675168,1756705854471,-480.0,0.00014776,2]
[382675169,1756705854481,-480.0,0.00014776,2]
[382675170,1756705854491,-480.0,0.00014776,2]
[382675171,1756705854500,-480.0,0.00014776,2]
[382675172,1756705854510,-976.53,0.00014776,2]
[382675173,1756705854519,-480.0,0.00014776,2]
[382675174,1756705854528,-1015.92,0.00014776,2]
[382675175,1756705854538,-480.0,0.00014776,2]
[382675176,1756705854547,-483.50344514,0.00014776,2]
[382675177,1756705854557,-480.0,0.00014776,2]
[382675178,1756705854566,-888.21,0.00014776,2]
[382675179,1756705854575,-481.71634681,0.00014776,2]
[382675180,1756705854585,-2136.21,0.00014776,2]
[382675181,1756705854594,-480.0,0.00014776,2]
[382675182,1756705854603,-1101.63,0.00014776,2]
[382675183,1756705854613,-710.3,0.00014776,2]
[382675184,1756705854622,-480.0,0.00014776,2]
[382675185,1756705854631,-516.35,0.00014776,2]
[382675186,1756705854641,-1380.56,0.00014776,2]
[382675187,1756705854651,-619.66,0.00014776,2]
[382675188,1756705854660,-483.39713193,0.00014776,2]
[382675189,1756705854669,-621.5,0.00014776,2]
[382675190,1756705854678,-550.2,0.00014776,2]
[382675191,1756705854688,-480.0,0.00014777,2]
[382675192,1756705854697,-480.0,0.00014777,2]
[382675193,1756705854707,-480.0,0.00014777,2]
[382675194,1756705854717,-480.0,0.00014777,2]
[382675195,1756705854727,-480.0,0.00014777,2]
[382675196,1756705854736,-480.0,0.00014777,2]
[382675197,1756705854745,-691.89,0.00014777,2]
[382675198,1756705854754,-484.33888787,0.00014777,2]
[382675199,1756705854763,-365.76220789,0.00014777,2]
[382675200,1756705854773,-480.0,0.00014777,2]
[382675201,1756705854782,-480.0,0.00014777,2]
[382675202,1756705854792,-482.7155595,0.00014777,2]
[382675203,1756705854801,-424.32118277,0.00014777,2]
[382675204,1756705854810,-480.0,0.00014777,2]
[382675205,1756705854819,-480.0,0.00014777,2]
[382675206,1756705854829,-363.9369586,0.00014777,2]
[382675207,1756705854838,-613.97902316,0.00014777,2]
[382675208,1756705854847,-364.04326404,0.00014777,2]
[382675209,1756705854857,-480.0,0.00014777,2]
[382675210,1756705854867,-480.0,0.00014777,2]
[382675211,1756705854876,-480.0,0.00014777,2]
[382675212,1756705854886,-481.71160706,0.00014777,2]
[382675213,1756705854895,-856.14,0.00014777,2]
[382675214,1756705854904,-814.59,0.00014777,2]
[382675215,1756705854913,-480.0,0.00014777,2]
[382675216,1756705854923,-480.0,0.00014777,2]
[382675217,1756705854934,-480.0,0.00014777,2]
[382675218,1756705854943,-688.69,0.00014777,2]
[382675219,1756705854953,-480.0,0.00014777,2]
[382675220,1756705854962,-493.77312248,0.00014777,2]
[382675221,1756705854971,-480.0,0.00014777,2]
[382675222,1756705854980,-480.0,0.00014777,2]
[382675223,1756705854990,-480.0,0.00014777,2]
[382675224,1756705854999,-499.9517595,0.00014777,2]
[382675225,1756705855009,-480.0,0.00014777,2]
[382675226,1756705855018,-480.0,0.00014777,2]
[382675227,1756705855027,-480.0,0.00014777,2]
[382675228,1756705855036,-808.33,0.00014777,2]
[382675229,1756705855047,-527.52009378,0.00014777,2]
[382675230,1756705855057,-1109.05,0.00014777,2]
[382675231,1756705855068,-302.31394063,0.00014777,2]
[382675232,1756705855077,-480.0,0.00014777,2]
[382675233,1756705855087,-480.0,0.00014777,2]
[382675234,1756705855097,-480.0,0.00014777,2]
[382675235,1756705855107,-743.86,0.00014777,2]
[382675236,1756705855162,-3283.55,0.00014777,2]
[382675237,1756705855173,-480.0,0.00014777,2]
[382675238,1756705855182,-480.0,0.00014777,2]
[382675239,1756705855192,-480.0,0.00014777,2]
[382675240,1756705855201,-480.0,0.00014777,2]
[382675241,1756705855211,-480.0,0.00014777,2]
[382675242,1756705855220,-483.5030486,0.00014777,2]
[382675243,1756705855230,-499.7,0.00014777,2]
[382675244,1756705855239,-480.0,0.00014777,2]
[382675245,1756705855248,-482.55470668,0.00014777,2]
[382675246,1756705855257,-480.0,0.00014777,2]
[382675247,1756705855268,-480.0,0.00014777,2]
[382675248,1756705855278,-480.0,0.00014777,2]
[382675249,1756705855289,-480.0,0.00014777,2]
[382675250,1756705855299,-480.0,0.00014777,2]
[382675251,1756705855310,-872.89,0.00014777,2]
[382675252,1756705855321,-522.84,0.00014777,2]
[382675253,1756705855331,-1227.61,0.00014777,2]
[382675254,1756705855341,-480.0,0.00014777,2]
[382675255,1756705855350,-629.74,0.00014777,2]
[382675256,1756705855360,-480.0,0.00014777,2]
[382675257,1756705855369,-1198.1,0.00014777,2]
[382675258,1756705855380,-1139.62,0.00014777,2]
[382675259,1756705855390,-480.0,0.00014777,2]
[382675260,1756705855400,-483.4,0.00014777,2]
[382675261,1756705855409,-1072.0,0.00014777,2]